bitfinex/quotes_ETHUSD_20250428
["timestamp","ask_amount","ask_price","bid_price","bid_amount"]
[1745816414402,0.8360229,1790.1,1789.8,5.3077]
[1745816414602,0.52241538,1790.0,1789.8,5.3077]
[1745816415230,0.31360752,1790.1,1789.8,5.3077]
[1745816415432,0.8206,1790.3,1789.8,5.3077]
[1745816415632,0.5227759,1790.2,1789.8,4.689]
[1745816416193,0.8206,1790.3,1789.8,4.689]
[1745816416194,0.5227759,1790.1,1789.8,4.689]
[1745816416427,0.31365869,1790.0,1789.8,4.689]
[1745816416633,0.5227759,1789.9,1789.8,4.689]
[1745816417634,0.83643459,1789.9,1789.8,4.689]
[1745816426451,0.83643459,1789.9,1789.4,17.3947]
[1745816426651,0.7606,1789.8,1789.5,4.689]
[1745816426858,1.2833759,1789.8,1789.5,4.689]
[1745816427065,0.31365869,1789.7,1789.5,4.689]
[1745816427560,0.5227759,1789.6,1789.5,4.689]
[1745816428136,0.7606,1789.8,1789.5,4.689]
[1745816428956,0.5223346,1789.7,1789.5,4.689]
[1745816429432,0.7606,1789.8,1789.5,4.689]
[1745816430229,0.31329501,1789.7,1789.5,4.689]
[1745816430957,0.7606,1789.8,1789.5,4.689]
[1745816431475,0.52210629,1789.7,1789.5,4.689]
[1745816431824,0.835326,1789.6,1789.5,4.689]
[1745816432458,0.52210629,1789.6,1789.5,4.689]
[1745816433360,0.835326,1789.6,1789.5,4.689]
[1745816434227,0.835326,1789.7,1789.5,4.689]
[1745816435073,0.52210629,1789.6,1789.5,4.689]
[1745816435369,0.835326,1789.6,1789.5,4.689]
[1745816435877,0.31321971,1789.6,1789.5,4.689]
[1745816436036,0.835326,1789.6,1789.5,4.689]
[1745816436454,0.52210629,1789.6,1789.5,4.689]
[1745816437128,0.31321971,1789.7,1789.5,4.689]
[1745816437333,0.7606,1789.8,1789.5,4.689]
[1745816437532,0.52204286,1789.7,1789.5,4.689]
[1745816437736,0.52204286,1789.7,1789.5,5.3077]
[1745816438070,0.52204286,1789.9,1789.5,5.3077]
[1745816438284,0.52204286,1789.8,1789.5,9.21939147]
[1745816438984,0.7905,1790.0,1789.5,5.3077]
[1745816439572,0.83547368,1789.9,1789.5,5.3077]
[1745816440079,0.52215762,1789.8,1789.5,5.3077]
[1745816440249,0.83547368,1789.8,1789.5,5.3077]
[1745816440743,0.7905,1790.0,1789.5,5.3077]
[1745816441270,0.52258589,1789.9,1789.5,5.3077]
[1745816441648,0.52258589,1789.8,1789.5,5.3077]
[1745816442035,0.7905,1790.0,1789.5,5.3077]
[1745816442469,0.31359797,1789.9,1789.5,5.3077]
[1745816442671,0.83624381,1789.9,1789.5,5.3077]
[1745816443039,0.52267261,1789.8,1789.5,5.3077]
[1745816443373,0.31359797,1789.9,1789.5,9.21939138]
[1745816443781,0.31359797,1789.8,1789.5,9.21939138]
[1745816443981,0.31359797,1789.8,1789.5,5.3077]
[1745816444577,0.52279268,1789.7,1789.5,5.3077]
[1745816445277,0.7905,1790.0,1789.5,5.3077]
[1745816445841,0.5230041,1789.9,1789.6,4.689]
[1745816446054,0.31380323,1789.8,1789.6,4.689]
[1745816446241,0.5230041,1789.7,1789.6,4.689]
[1745816447166,0.83680733,1789.7,1789.6,4.689]
[1745816448687,0.31380323,1789.7,1789.6,4.689]
[1745816448884,0.83695587,1789.7,1789.6,4.689]
[1745816449289,110.83695587,1789.7,1789.6,4.689]
[1745816449700,110.83695587,1789.7,1789.3,6.37022605]
[1745816449870,111.64585587,1789.7,1789.3,11.05922605]
[1745816450196,0.52315264,1789.6,1789.3,11.05922605]
[1745816450376,0.31380323,1789.5,1789.3,11.05922605]
[1745816451270,0.31380323,1789.4,1789.3,11.05922605]
[1745816451595,0.83689632,1789.4,1789.3,11.05922605]
[1745816459769,0.83689632,1789.4,1789.3,6.37022605]
[1745816459972,1.59849632,1789.4,1789.3,6.37022605]
[1745816462091,0.83689632,1789.4,1789.3,6.37022605]
[1745816462791,0.52309309,1789.4,1789.3,6.37022605]
[1745816462996,0.8138,1789.6,1789.3,6.37022605]
[1745816463389,0.31369117,1789.5,1789.3,6.37022605]
[1745816464365,0.52278762,1789.4,1789.3,6.37022605]
[1745816464570,0.83647879,1789.4,1789.3,6.37022605]
[1745816465278,0.31369117,1789.4,1789.3,6.37022605]
[1745816465606,0.31369117,1789.4,1789.3,10.90107046]
[1745816465909,110.0,1789.7,1789.6,4.5301886]
[1745816466109,110.0,1789.7,1789.6,9.85105013]
[1745816474487,110.0,1789.7,1789.6,4.689]
[1745816475586,110.0,1789.7,1789.4,4.53050122]
[1745816475781,110.0,1789.7,1789.5,4.687]
[1745816478409,110.0,1789.7,1789.4,4.53062003]
[1745816478614,110.0,1789.7,1789.6,4.687]
[1745816480914,110.0,1789.7,1789.4,0.6187]
[1745816481121,110.0,1789.7,1789.6,4.687]
[1745816481916,110.83475621,1789.7,1789.6,4.687]
[1745816482916,110.0,1789.7,1789.6,4.687]
[1745816483980,110.0,1789.7,1789.6,8.5984886]
[1745816484214,110.0,1789.7,1789.6,4.687]
[1745816485522,110.0,1789.7,1789.6,8.5984886]
[1745816487327,110.0,1789.7,1789.6,9.84905013]
[1745816488024,110.0,1789.7,1789.6,12.59338101]
[1745816490627,110.0,1789.7,1789.6,11.96151948]
[1745816491602,110.0,1789.7,1789.6,11.34281948]
[1745816495205,110.0,1789.7,1789.6,2.74433088]
[1745816495417,110.0,1789.7,1789.6,7.43133088]
[1745816496130,110.83669327,1789.7,1789.6,7.43133088]
[1745816499134,110.31374715,1789.7,1789.6,11.34281948]
[1745816500006,110.0,1789.7,1789.6,11.34281948]
[1745816504149,110.0,1789.7,1789.6,7.43133088]
[1745816505026,110.31394224,1789.7,1789.6,7.43133088]
[1745816505550,110.8371841,1789.7,1789.6,7.43133088]
[1745816505847,110.8371841,1789.7,1789.6,11.34281948]
[1745816506050,110.31394224,1789.7,1789.6,11.34281948]
[1745816507354,110.31394224,1789.7,1789.6,7.43133088]
[1745816507517,110.31394224,1789.7,1789.6,11.34281948]
[1745816508413,110.31394224,1789.7,1789.6,7.43133088]
[1745816508814,110.83730622,1789.7,1789.6,7.43133088]
[1745816509345,110.83730622,1789.7,1789.6,11.34281948]
[1745816509847,110.31394224,1789.7,1789.6,11.34281948]
[1745816510559,110.31394224,1789.7,1789.6,13.16465564]
[1745816510743,110.31394224,1789.7,1789.6,11.96151948]
[1745816511054,110.31394224,1789.7,1789.6,13.16465564]
[1745816511239,110.0,1789.7,1789.6,13.16465564]
[1745816511620,110.0,1789.7,1789.6,12.59283798]
[1745816512562,110.0,1789.7,1789.6,13.00236122]
[1745816513051,0.8291,1790.4,1789.9,3.91075426]
[1745816513348,0.6313185,1791.0,1790.0,5.3037]
[1745816513349,0.8314,1790.7,1790.0,5.3037]
[1745816513550,0.8314,1790.7,1790.1,3.91039606]
[1745816513751,0.52278874,1790.6,1790.0,25.99019092]
[1745816514066,0.83647033,1790.6,1790.0,25.99019092]
[1745816514241,1.29988874,1790.5,1790.0,17.3947]
[1745816514422,1.29988874,1790.5,1790.1,4.685]
[1745816514951,0.31368159,1790.4,1790.1,4.685]
[1745816515158,0.83647033,1790.4,1790.1,4.685]
[1745816515531,0.31368159,1790.3,1790.1,4.685]
[1745816516559,0.83604217,1790.4,1790.1,4.685]
[1745816517863,0.794,1790.3,1790.1,4.685]
[1745816521227,1.10724172,1790.3,1790.1,4.685]
[1745816522031,0.794,1790.3,1790.1,4.685]
[1745816522965,1.10724172,1790.3,1790.1,4.685]
[1745816524260,0.794,1790.3,1790.1,4.685]
[1745816525661,1.1071428,1790.3,1790.1,4.685]
[1745816526457,0.794,1790.3,1790.1,4.685]
[1745816527436,0.52192143,1790.5,1790.0,16.776]
[1745816527437,0.8067,1790.1,1790.0,16.776]
[1745816527659,1.32862143,1790.1,1790.0,16.776]
[1745816527837,1.6418566,1790.1,1789.9,4.684]
[1745816528769,1.11993517,1790.1,1789.9,4.684]
[1745816529069,0.8067,1790.1,1789.9,4.684]
[1745816531638,2.00967266,1790.1,1789.9,4.684]
[1745816531949,1.063776,1790.0,1789.9,4.685]
[1745816532162,1.58607296,1790.0,1789.9,4.685]
[1745816533757,0.83567296,1790.0,1789.9,4.685]
[1745816533956,0.313376,1790.0,1789.9,4.685]
[1745816534613,0.83567296,1790.1,1789.9,4.685]
[1745816535547,0.8104,1790.2,1789.9,4.685]
[1745816536942,0.83596849,1790.1,1789.9,4.685]
[1745816537375,0.31348818,1790.1,1789.9,4.685]
[1745816537979,0.8104,1790.2,1789.9,4.685]
[1745816538277,0.52262085,1790.1,1789.9,4.685]
[1745816538496,1.11908966,1790.0,1789.9,4.685]
[1745816539060,0.31358966,1790.0,1789.9,4.685]
[1745816539297,0.83633754,1790.0,1789.9,4.685]
[1745816539904,0.31358966,1790.0,1789.9,4.685]
[1745816540279,1.32833534,1790.3,1789.9,4.685]
[1745816540904,0.52283534,1790.2,1789.9,4.685]
[1745816541296,0.31370491,1790.1,1789.9,4.685]
[1745816541594,0.83654025,1790.1,1789.9,4.685]
[1745816541891,0.31370491,1790.0,1789.9,4.685]
[1745816542992,0.52283078,1790.2,1789.9,5.3037]
[1745816543380,0.52283078,1790.2,1789.9,9.2145312]
[1745816543700,0.7527,1790.5,1789.9,9.2145312]
[1745816544175,0.52281229,1790.4,1789.9,9.2145312]
[1745816544777,0.31371762,1790.3,1789.9,9.2145312]
[1745816544990,0.83652991,1790.3,1789.9,9.2145312]
[1745816545607,0.31371762,1790.2,1789.9,9.2145312]
[1745816546261,0.5228616,1790.4,1789.9,9.2145312]
[1745816546672,0.5228616,1790.3,1789.9,9.2145312]
[1745816547169,0.7527,1790.5,1789.9,9.2145312]
[1745816547698,0.5227466,1790.4,1789.9,9.2145312]
[1745816547905,0.5227466,1790.4,1790.1,3.91039278]
[1745816548104,0.5227466,1790.4,1790.2,0.6187]
[1745816548309,0.31365928,1790.3,1790.2,0.6187]
[1745816548598,0.31365928,1790.3,1790.2,5.3017]
[1745816549101,0.52278884,1790.6,1790.2,5.3017]
[1745816549476,0.52278884,1790.5,1790.2,5.3017]
[1745816549800,0.83643669,1790.4,1790.2,5.3017]
[1745816550300,0.31364785,1790.4,1790.2,5.3017]
[1745816550703,0.7587,1790.7,1790.2,5.3017]
[1745816551069,0.52270168,1790.6,1790.2,5.3017]
[1745816551383,0.83631948,1790.6,1790.2,5.3017]
[1745816551588,0.52270168,1790.5,1790.2,5.3017]
[1745816552096,1.59301948,1790.4,1790.2,4.683]
[1745816552668,1.0703178,1790.4,1790.2,4.683]
[1745816552875,0.3136178,1790.3,1790.2,4.683]
[1745816558814,0.3136178,1790.3,1790.2,9.21187763]
[1745816559219,0.3136178,1790.3,1790.2,12.21187763]
[1745816559515,0.52255096,1790.6,1790.5,4.52822247]
[1745816559713,0.3136178,1790.9,1790.7,3.90900997]
[1745816559891,0.3136178,1790.9,1790.8,5.3017]
[1745816560088,0.3136178,1791.1,1790.8,5.3017]
[1745816560274,0.3136178,1791.1,1790.8,9.21054539]
[1745816560473,0.3136178,1791.1,1790.8,5.3017]
[1745816561116,0.8125,1791.2,1790.8,5.3017]
[1745816561294,0.63149485,1791.4,1790.8,9.21050429]
[1745816561494,1.41659485,1791.4,1790.8,9.21050429]
[1745816561995,0.31283844,1791.3,1790.8,9.21050429]
[1745816563619,0.31283844,1791.3,1790.8,5.3017]
[1745816564319,0.31283844,1791.3,1790.8,5.93319485]
[1745816564489,0.7851,1791.4,1790.8,9.84198223]
[1745816564685,0.7851,1791.4,1790.8,9.21048738]
[1745816565195,0.7851,1791.4,1790.9,3.90855175]
[1745816565196,1.09793844,1791.4,1790.9,3.90855175]
[1745816565393,1.09793844,1791.4,1790.8,9.84195987]
[1745816565594,1.09793844,1791.4,1790.9,3.90856429]
[1745816565800,0.7851,1791.4,1790.8,9.21041359]
[1745816566122,1.09323844,1791.5,1791.1,0.6187]
[1745816566307,1.09323844,1791.5,1791.2,4.681]
[1745816566822,0.63149485,1791.4,1791.2,4.681]
[1745816566992,0.8177,1791.3,1790.7,0.6187]
[1745816567314,0.8177,1791.3,1790.8,4.68]
[1745816567719,0.8177,1791.3,1790.6,20.67930173]
[1745816567720,0.8177,1791.1,1790.9,4.68]
[1745816568509,1.13053844,1791.1,1790.9,4.68]
[1745816570526,0.7626,1790.9,1790.6,16.77]
[1745816570825,0.7626,1790.9,1790.8,4.68]
[1745816574405,0.7626,1790.9,1790.8,13.00704458]
[1745816574792,0.31249479,1791.0,1790.8,13.00704458]
[1745816575200,0.31249479,1791.0,1790.9,8.32657961]
[1745816580442,1.78388402,1791.0,1790.9,8.32657961]
[1745816580734,1.71408964,1791.0,1790.9,8.32657961]
[1745816583823,2.13918898,1791.0,1790.9,8.32657961]
[1745816584022,2.65310788,1791.0,1790.9,8.32657961]
[1745816585212,3.0,1790.9,1790.6,21.451]
[1745816585442,0.817,1790.7,1790.6,21.451]
[1745816585933,0.817,1790.7,1790.6,4.681]
[1745816586208,1.12949479,1790.7,1790.6,4.681]
[1745816588358,0.31249479,1790.7,1790.6,4.681]
[1745816590823,0.7684,1790.6,1790.5,4.681]
[1745816591716,1.08089479,1790.6,1790.5,4.681]
[1745816592209,1.71238964,1790.6,1790.2,4.681]
[1745816592415,0.7992,1790.3,1789.9,16.769]
[1745816592614,0.63149485,1790.2,1790.0,4.681]
[1745816592909,1.18152758,1790.1,1789.5,0.6187]
[1745816593121,0.7992,1789.8,1789.6,4.681]
[1745816593540,1.11169479,1789.8,1789.6,4.681]
[1745816594546,1.11169479,1789.8,1789.4,0.6187]
[1745816594547,0.63149485,1789.7,1789.4,4.681]
[1745816594747,0.63149485,1789.5,1789.4,4.681]
[1745816595119,0.94398964,1789.5,1789.4,4.681]
[1745816595520,0.31249479,1789.5,1789.4,4.681]
[1745816595917,1.10259479,1789.6,1789.4,4.681]
[1745816596849,1.41959485,1789.8,1789.4,4.681]
[1745816599955,1.41299485,1790.0,1789.4,4.681]
[1745816600635,0.7815,1790.0,1789.5,0.6187]
[1745816602623,1.13379193,1790.1,1789.5,0.6187]
[1745816607948,1.13379193,1790.1,1789.6,4.682]
[1745816608167,1.13379193,1790.1,1789.7,0.6187]
[1745816608566,0.31119193,1790.1,1789.7,0.6187]
[1745816611268,0.63149485,1790.0,1789.7,0.6187]
[1745816613380,0.63149485,1790.0,1789.5,0.6187]
[1745816613608,0.63149485,1789.8,1789.4,4.682]
[1745816613773,0.63149485,1789.6,1789.4,4.682]
[1745816614100,1.72798678,1789.6,1789.4,4.682]
[1745816615492,0.31119193,1789.5,1789.4,4.682]
[1745816622382,0.31119193,1789.5,1788.7,17.3977]
[1745816622383,0.7648,1789.4,1788.7,17.3977]
[1745816622709,0.7648,1789.4,1788.8,4.683]
[1745816622710,1.39629485,1789.1,1788.8,4.683]
[1745816623285,0.31119193,1789.0,1788.8,4.683]
[1745816623878,0.31119193,1789.0,1788.9,0.6187]
[1745816624417,0.31119193,1789.3,1788.9,0.6187]
[1745816625285,0.31119193,1789.2,1788.9,0.6187]
[1745816626007,0.31119193,1789.1,1788.9,0.6187]
[1745816626618,0.31119193,1789.1,1788.9,3.91299601]
[1745816626817,0.31119193,1789.1,1789.0,0.6187]
[1745816627124,0.31119193,1789.5,1789.0,0.6187]
[1745816627727,0.31119193,1789.4,1789.0,0.6187]
[1745816628712,0.31119193,1789.3,1789.0,0.6187]
[1745816629410,0.31119193,1789.5,1789.0,0.6187]
[1745816630338,0.31119193,1789.4,1789.0,0.6187]
[1745816631232,0.31119193,1789.5,1789.0,0.6187]
[1745816632303,1.12907084,1789.6,1789.0,0.6187]
[1745816632304,0.31119193,1789.4,1789.0,0.6187]
[1745816633234,0.31119193,1789.5,1789.0,0.6187]
[1745816634439,0.31119193,1789.4,1789.0,0.6187]
[1745816635135,1.73888678,1789.4,1789.0,0.6187]
[1745816635340,0.31119193,1789.3,1789.1,4.683]
[1745816636341,0.31119193,1789.2,1789.1,4.683]
[1745816637541,0.31119193,1789.3,1789.1,4.683]
[1745816638242,0.31119193,1789.2,1789.1,4.683]
[1745816646461,0.31119193,1789.2,1789.1,5.3017]
[1745816649839,0.31119193,1789.2,1789.1,9.84577659]
[1745816650177,0.94268678,1789.9,1789.2,0.6187]
[1745816650469,0.7858,1789.6,1789.2,4.683]
[1745816650968,0.94268678,1789.5,1789.2,4.683]
[1745816652478,0.31119193,1789.4,1789.2,4.683]
[1745816652681,0.729017,1789.4,1789.2,4.683]
[1745816653259,1.51155534,1789.3,1789.2,4.683]
[1745816653587,1.75288678,1789.3,1789.2,4.683]
[1745816656461,0.31119193,1789.3,1789.2,4.683]
[1745816657058,0.31119193,1789.3,1789.1,5.3017]
[1745816657376,0.31119193,1789.2,1789.1,5.3017]
[1745816663266,0.31119193,1789.2,1789.1,4.683]
[1745816664078,0.31119193,1789.2,1789.1,5.3017]
[1745816664300,0.31119193,1789.2,1789.1,4.683]
[1745816682614,0.31119193,1789.2,1789.1,5.3017]
[1745816685310,0.31119193,1789.2,1789.1,4.683]
[1745816690740,0.31119193,1789.2,1789.0,5.3007]
[1745816691432,0.31119193,1789.1,1789.0,5.3007]
[1745816693037,0.31119193,1789.1,1789.0,4.682]
[1745816693336,0.31119193,1789.1,1788.9,4.682]
[1745816693701,0.8284,1789.2,1788.9,4.682]
[1745816694238,0.31347069,1789.1,1788.9,4.682]
[1745816694435,0.94496554,1789.1,1788.7,4.89897172]
[1745816694734,0.8134,1789.0,1788.7,4.89897172]
[1745816694949,0.8134,1788.8,1788.7,4.89897172]
[1745816695441,1.12687069,1788.8,1788.7,4.89897172]
[1745816696740,1.54582196,1788.8,1788.7,4.89897172]
[1745816697543,2.06683166,1788.8,1788.7,4.89897172]
[1745816703139,1.23235127,1788.8,1788.7,4.89897172]
[1745816703841,1.54448678,1788.8,1788.7,4.89897172]
[1745816704044,2.06471283,1788.8,1788.7,4.89897172]
[1745816704709,5.13459874,1788.8,1788.7,4.89897172]
[1745816704909,5.64132219,1788.8,1788.7,4.89897172]
[1745816710811,5.64132219,1788.8,1788.7,5.51767172]
[1745816710812,0.83236156,1788.8,1788.7,5.51767172]
[1745816711018,0.31213551,1788.8,1788.7,5.51767172]
[1745816711816,0.8268,1789.3,1788.7,5.51767172]
[1745816711817,0.31213551,1789.2,1788.7,5.51767172]
[1745816712017,0.31213551,1789.2,1788.9,0.6187]
[1745816712711,0.83201811,1789.3,1788.9,0.6187]
[1745816712962,1.27836941,1789.3,1788.9,0.6187]
[1745816713450,0.5198826,1789.2,1788.9,0.6187]
[1745816714026,0.83201811,1789.2,1788.9,0.6187]
[1745816715149,0.83201811,1789.1,1788.9,0.6187]
[1745816715651,0.31213551,1789.1,1788.9,0.6187]
[1745816716221,0.83201811,1789.1,1788.9,0.6187]
[1745816716618,0.83201811,1789.1,1788.7,10.20067172]
[1745816716851,0.83201811,1789.0,1788.7,10.20067172]
[1745816717172,0.31213551,1789.0,1788.7,10.20067172]
[1745816717851,0.83201811,1789.0,1788.7,10.20067172]
[1745816718546,0.5198826,1788.9,1788.7,10.20067172]
[1745816719053,0.5198826,1789.0,1788.7,10.20067172]
[1745816719418,0.83201811,1789.1,1788.7,10.20067172]
[1745816719720,0.31213551,1789.0,1788.7,10.20067172]
[1745816720119,0.83201811,1789.0,1788.7,10.20067172]
[1745816720350,0.5198826,1789.0,1788.7,9.58197172]
[1745816720554,0.5198826,1789.0,1788.9,0.63149485]
[1745816720732,0.5198826,1789.0,1788.9,1.25019485]
[1745816721053,0.31213551,1789.1,1789.0,0.6187]
[1745816721644,0.31213551,1789.3,1789.0,0.6187]
[1745816722266,0.83201811,1789.3,1789.0,0.6187]
[1745816722418,0.5198826,1789.3,1789.0,0.6187]
[1745816722821,0.5198826,1789.5,1789.0,0.6187]
[1745816723337,0.83222683,1789.4,1789.0,0.6187]
[1745816723743,0.5198826,1789.3,1789.0,0.6187]
[1745816724228,0.83222683,1789.3,1789.0,0.6187]
[1745816724660,0.31234423,1789.3,1789.0,0.6187]
[1745816725217,0.52039126,1789.3,1789.0,0.6187]
[1745816725422,0.83262461,1789.3,1789.0,0.6187]
[1745816725657,0.31223335,1789.3,1789.0,0.6187]
[1745816726369,0.31223335,1789.4,1789.0,0.6187]
[1745816726533,0.83262461,1789.4,1789.0,0.6187]
[1745816726734,0.83262461,1789.4,1789.1,4.682]
[1745816726966,0.31223335,1789.3,1789.1,4.682]
[1745816727971,0.83262461,1789.5,1789.1,4.682]
[1745816728470,0.52039126,1789.4,1789.1,4.682]
[1745816728836,0.83262461,1789.4,1789.1,4.682]
[1745816729870,0.31223335,1789.3,1789.1,4.682]
[1745816731071,0.83262461,1789.3,1789.1,4.682]
[1745816731367,0.52039126,1789.3,1789.1,4.682]
[1745816731576,0.52039126,1789.3,1789.2,0.3540072]
[1745816731867,0.52039126,1789.3,1789.1,4.682]
[1745816732070,0.52039126,1789.3,1789.2,0.35836873]
[1745816732441,0.52039126,1789.3,1789.1,4.682]
[1745816732442,1.32329126,1789.3,1789.1,4.682]
[1745816732642,1.63550428,1789.3,1789.2,0.35842469]
[1745816733057,1.63550428,1789.3,1789.1,4.682]
[1745816733239,1.11511302,1789.3,1789.2,0.35876048]
[1745816733441,0.31221302,1789.3,1789.2,0.97746048]
[1745816733675,0.31221302,1789.4,1789.2,0.6187]
[1745816733876,0.83266975,1789.4,1789.2,0.97746048]
[1745816734588,0.31221302,1789.4,1789.2,0.97746048]
[1745816734792,0.31221302,1789.3,1789.2,0.97746048]
[1745816735480,0.52045673,1789.4,1789.2,0.97746048]
[1745816735669,0.83266975,1789.5,1789.2,0.97746048]
[1745816735870,0.52045673,1789.4,1789.2,0.97746048]
[1745816736245,0.83266975,1789.4,1789.2,0.97746048]
[1745816736450,0.52045673,1789.3,1789.2,0.97746048]
[1745816737287,0.31221302,1789.3,1789.2,0.97746048]
[1745816737959,0.52045673,1789.4,1789.2,0.97746048]
[1745816738292,1.17373232,1789.6,1789.2,0.97746048]
[1745816738857,0.7517,1789.6,1789.2,0.97746048]
[1745816739057,0.83355645,1789.5,1789.2,0.97746048]
[1745816739364,0.52097278,1789.4,1789.2,0.97746048]
[1745816739764,0.83355645,1789.3,1789.2,0.97746048]
[1745816743466,0.83355645,1789.3,1789.2,0.35876048]
[1745816743987,0.83355645,1789.3,1789.2,0.35820081]
[1745816744186,0.83355645,1789.3,1789.2,0.6187]
[1745816744388,0.31258367,1789.3,1789.2,0.97594947]
[1745816744766,0.7665,1789.8,1789.2,0.97594947]
[1745816744767,0.83454995,1789.7,1789.2,2.17974821]
[1745816744964,0.83454995,1789.7,1789.3,0.6187]
[1745816745171,0.52196628,1789.6,1789.4,0.35705386]
[1745816745769,0.31258367,1789.5,1789.4,0.35705386]
[1745816745969,0.83454995,1789.5,1789.4,0.35705386]
[1745816746366,0.83454995,1789.5,1789.4,2.1795526]
[1745816746601,0.31258367,1789.5,1789.4,2.1795526]
[1745816747090,0.52196628,1789.8,1789.4,2.1795526]
[1745816747295,0.52196628,1789.8,1789.5,4.681]
[1745816747689,0.52196628,1789.7,1789.6,0.35691424]
[1745816747867,0.83454995,1789.7,1789.6,0.35691424]
[1745816757007,2.81544869,1789.7,1789.6,0.35691424]
[1745816757309,3.12179356,1789.7,1789.6,0.35691424]
[1745816757606,3.12179356,1789.7,1789.2,4.68]
[1745816757806,3.12179356,1789.7,1789.3,0.35399066]
[1745816758011,0.52196628,1789.6,1789.3,0.35399066]
[1745816758610,0.52196628,1789.5,1789.3,0.35399066]
[1745816758812,0.83454995,1789.5,1789.3,0.35399066]
[1745816759106,0.52196628,1789.4,1789.3,0.35399066]
[1745816759686,0.83454995,1789.4,1789.3,0.35399066]
[1745816760636,0.83454995,1789.4,1789.3,0.97269066]
[1745816761088,0.31258367,1789.4,1789.3,0.97269066]
[1745816761503,0.83454995,1789.4,1789.3,0.97269066]
[1745816762091,0.31258367,1789.4,1789.3,0.97269066]
[1745816762683,0.83454995,1789.4,1789.3,0.97269066]
[1745816765725,0.31258367,1789.4,1789.3,0.97269066]
[1745816767018,0.83524513,1789.4,1789.3,0.97269066]
[1745816771900,0.31258367,1789.4,1789.3,0.97269066]
[1745816773136,0.83548688,1789.4,1789.3,0.97269066]
[1745816776243,0.31258367,1789.4,1789.3,0.97269066]
[1745816776440,0.31258367,1789.4,1789.3,6.08863381]
[1745816777120,0.83581752,1789.8,1789.6,0.6187]
[1745816777316,0.83581752,1789.8,1789.7,4.68]
[1745816777508,0.83581752,1789.8,1789.7,5.03477429]
[1745816786158,0.31258367,1789.8,1789.7,5.03477429]
[1745816786858,5.33928241,1789.8,1789.7,0.35477429]
[1745816787066,0.8229,1789.7,1789.4,4.679]
[1745816787235,5.10961735,1789.8,1789.2,4.679]
[1745816787236,0.8229,1789.4,1789.2,4.679]
[1745816787757,0.83581752,1789.3,1789.2,4.679]
[1745816789659,0.31258367,1789.3,1789.2,6.50149874]
[1745816790261,0.31258367,1789.3,1789.2,10.4138618]
[1745816790568,0.31258367,1789.3,1789.2,6.50149874]
[1745816790776,0.8131,1789.8,1789.2,6.50149874]
[1745816790976,0.52247782,1789.7,1789.2,6.50149874]
[1745816791278,0.52247782,1789.6,1789.2,6.50149874]
[1745816791459,0.83599354,1789.6,1789.2,6.50149874]
[1745816791775,0.31351572,1789.6,1789.2,5.2977]
[1745816792074,0.52251632,1789.5,1789.2,5.2977]
[1745816792450,0.8131,1789.8,1789.2,5.2977]
[1745816793068,0.5225209,1789.7,1789.2,5.2977]
[1745816793273,0.83603344,1789.7,1789.2,5.2977]
[1745816793569,0.5225209,1789.6,1789.2,5.2977]
[1745816794163,0.31351254,1789.5,1789.2,5.2977]
[1745816794968,0.52253795,1789.7,1789.2,5.2977]
[1745816795156,0.8131,1789.8,1789.2,9.21003055]
[1745816795861,0.3135251,1789.7,1789.2,9.21003055]
[1745816796163,0.83606812,1789.7,1789.2,9.21003055]
[1745816796573,0.52254302,1789.6,1789.2,9.21003055]
[1745816796878,0.83606812,1789.6,1789.2,9.21003055]
[1745816797161,0.52254302,1789.5,1789.2,9.21003055]
[1745816797361,0.52254302,1789.5,1789.3,0.29544184]
[1745816797565,0.3135251,1789.6,1789.3,0.29544184]
[1745816797866,0.3135251,1789.5,1789.3,0.29544184]
[1745816798762,0.52249639,1789.7,1789.3,0.29544184]
[1745816798969,0.52249639,1789.6,1789.3,0.29544184]
[1745816799268,0.52249639,1789.5,1789.3,0.29544184]
[1745816799873,0.52249639,1789.7,1789.3,0.29544184]
[1745816800564,0.52249639,1789.6,1789.3,0.29544184]
[1745816801067,0.52249639,1789.7,1789.3,4.20750327]
[1745816801682,0.52249639,1789.7,1789.3,0.29544184]
[1745816801848,0.83603594,1789.6,1789.3,0.29544184]
[1745816802270,0.31353955,1789.6,1789.3,0.29544184]
[1745816803046,0.8131,1789.8,1789.3,0.29544184]
[1745816803252,0.8131,1789.8,1789.3,4.20757975]
[1745816803253,0.52254003,1789.7,1789.3,4.20757975]
[1745816803673,0.52254003,1789.6,1789.3,4.20757975]
[1745816803980,0.52254003,1789.6,1789.3,4.20748893]
[1745816804281,0.52254003,1789.7,1789.4,0.6187]
[1745816804450,0.52254003,1789.7,1789.5,0.29708678]
[1745816804651,0.52254003,1789.6,1789.5,4.20878786]
[1745816804855,0.8234,1790.0,1789.5,4.20878786]
[1745816804856,0.52254003,1789.9,1789.5,4.20878786]
[1745816805060,0.52254003,1789.9,1789.6,4.679]
[1745816805368,0.31352853,1789.8,1789.7,0.29521798]
[1745816805570,0.83606856,1789.8,1789.7,0.29521798]
[1745816806079,0.83606856,1789.8,1789.6,4.679]
[1745816806279,0.31352853,1789.8,1789.7,0.29521798]
[1745816806974,0.83606956,1789.8,1789.6,5.2977]
[1745816807156,0.31352853,1789.8,1789.7,0.29521798]
[1745816807567,0.31352853,1789.8,1789.6,5.2977]
[1745816807767,0.31352853,1789.8,1789.7,0.29521798]
[1745816808083,0.31352853,1789.8,1789.6,5.2977]
[1745816808583,0.8234,1790.0,1789.7,0.29521798]
[1745816809079,0.8234,1790.0,1789.6,5.2977]
[1745816809080,0.8234,1790.0,1789.8,0.29514819]
[1745816809280,0.52259965,1789.9,1789.6,5.2977]
[1745816809482,0.83224828,1789.9,1789.7,0.29521798]
[1745816809659,0.83224828,1789.9,1789.6,5.2977]
[1745816809982,0.31355979,1789.9,1789.7,0.29521798]
[1745816810350,0.8234,1790.0,1789.6,5.2977]
[1745816810351,0.31355979,1789.8,1789.6,5.2977]
[1745816811082,0.31355979,1789.7,1789.6,5.2977]
[1745816812347,0.31355979,1789.7,1789.6,5.59187236]
[1745816820084,0.31355979,1789.7,1789.6,4.97317236]
[1745816822585,0.83677148,1789.7,1789.6,4.97317236]
[1745816822887,0.31355979,1789.7,1789.6,10.08785813]